fUSD/lending_fUSD_20260530
["ID","MTS","AMOUNT","RATE_DAILY","PERIOD"]
[423422971,1780103177000,723.45,0.00039382,120]
[423422970,1780103177000,680.23776454,0.00039382,120]
[423422974,1780103177000,636.5272916,0.00039382,120]
[423422975,1780103177000,723.45,0.00039382,120]
[423422976,1780103177000,723.45,0.00039382,120]
[423422973,1780103177000,723.45,0.00039382,120]
[423422983,1780103178000,500.0,0.00039382,120]
[423422982,1780103178000,500.0,0.00039382,120]
[423422981,1780103178000,500.0,0.00039382,120]
[423422980,1780103178000,500.0,0.00039382,120]
[423422979,1780103178000,500.0,0.00039382,120]
[423422978,1780103178000,500.0,0.00039382,120]
[423422977,1780103178000,723.5509162,0.00039382,120]
[423422984,1780103179000,500.0,0.00039382,120]
[423422985,1780103179000,563.73406721,0.00039382,120]
[423422988,1780103179000,500.0,0.00039382,120]
[423422987,1780103179000,2301.27,0.00039382,120]
[423422986,1780103179000,3081.32,0.00039382,120]
[423422992,1780103180000,1034.92,0.00039382,120]
[423422989,1780103180000,3081.32,0.00039382,120]
[423422990,1780103180000,2301.27,0.00039382,120]
[423422991,1780103180000,500.0,0.00039382,120]
[423422993,1780103180000,3081.32,0.00039382,120]
[423422999,1780103180000,1034.92,0.00039382,120]
[423422995,1780103180000,500.0,0.00039382,120]
[423422996,1780103180000,500.0,0.00039382,120]
[423422997,1780103180000,3081.32,0.00039382,120]
[423422998,1780103180000,2301.27,0.00039382,120]
[423422994,1780103180000,2301.27,0.00039382,120]
[423423004,1780103181000,500.0,0.00039382,120]
[423423000,1780103181000,500.0,0.00039382,120]
[423423001,1780103181000,3081.32,0.00039382,120]
[423423003,1780103181000,1034.92,0.00039382,120]
[423423005,1780103181000,500.0,0.00039382,120]
[423423002,1780103181000,2301.27,0.00039382,120]
[423423008,1780103181000,1034.92,0.00039382,120]
[423423007,1780103181000,2301.27,0.00039382,120]
[423423011,1780103181000,1034.92,0.00039382,120]
[423423009,1780103181000,500.0,0.00039382,120]
[423423010,1780103181000,2301.27,0.00039382,120]
[423423006,1780103181000,3081.32,0.00039382,120]
[423423013,1780103182000,500.0,0.00039382,120]
[423423014,1780103182000,2301.27,0.00039382,120]
[423423015,1780103182000,1034.92,0.00039382,120]
[423423016,1780103182000,3081.32,0.00039382,120]
[423423017,1780103182000,500.0,0.00039382,120]
[423423018,1780103182000,2301.27,0.00039382,120]
[423423012,1780103182000,3081.32,0.00039382,120]
[423423020,1780103182000,3081.32,0.00039382,120]
[423423021,1780103182000,500.0,0.00039382,120]
[423423022,1780103182000,2301.27,0.00039382,120]
[423423023,1780103182000,1034.92,0.00039382,120]
[423423024,1780103182000,3081.32,0.00039382,120]
[423423025,1780103182000,504.17805708,0.00039382,120]
[423423019,1780103182000,1034.92,0.00039382,120]
[423423026,1780103183000,1034.92,0.00039382,120]
[423423027,1780103184000,2301.27,0.00039382,120]
[423423028,1780103184000,3081.32,0.00039382,120]
[423423029,1780103184000,1034.92,0.00039382,120]
[423423030,1780103184000,2301.27,0.00039382,120]
[423423032,1780103184000,1034.92,0.00039382,120]
[423423033,1780103184000,2301.27,0.00039382,120]
[423423034,1780103184000,3081.32,0.00039382,120]
[423423035,1780103184000,1034.92,0.00039382,120]
[423423031,1780103184000,3081.32,0.00039382,120]
[423423042,1780103185000,1034.92,0.00039382,120]
[423423036,1780103185000,2301.27,0.00039382,120]
[423423037,1780103185000,3081.32,0.00039382,120]
[423423038,1780103185000,2301.27,0.00039382,120]
[423423039,1780103185000,1034.92,0.00039382,120]
[423423040,1780103185000,3081.32,0.00039382,120]
[423423041,1780103185000,2301.27,0.00039382,120]
[423423043,1780103185000,3081.32,0.00039382,120]
[423423047,1780103185000,2301.27,0.00039382,120]
[423423045,1780103185000,1034.92,0.00039382,120]
[423423046,1780103185000,3081.32,0.00039382,120]
[423423053,1780103185000,2301.27,0.00039382,120]
[423423048,1780103185000,1034.92,0.00039382,120]
[423423049,1780103185000,3081.32,0.00039382,120]
[423423050,1780103185000,2301.27,0.00039382,120]
[423423051,1780103185000,3081.32,0.00039382,120]
[423423052,1780103185000,1034.92,0.00039382,120]
[423423044,1780103185000,2301.27,0.00039382,120]
[423423054,1780103186000,1034.92,0.00039382,120]
[423423055,1780103186000,3081.32,0.00039382,120]
[423423056,1780103186000,2301.27,0.00039382,120]
[423423057,1780103186000,3081.32,0.00039382,120]
[423423058,1780103186000,1034.92,0.00039382,120]
[423423060,1780103186000,3081.32,0.00039382,120]
[423423059,1780103186000,2301.27,0.00039382,120]
[423423062,1780103186000,2301.27,0.00039382,120]
[423423068,1780103186000,1034.92,0.00039382,120]
[423423064,1780103186000,1034.92,0.00039382,120]
[423423063,1780103186000,3081.32,0.00039382,120]
[423423065,1780103186000,2301.44781207,0.00039382,120]
[423423066,1780103186000,3081.44824366,0.00039382,120]
[423423067,1780103186000,1034.92,0.00039382,120]
[423423061,1780103186000,1034.92,0.00039382,120]
[423423069,1780103187000,1035.06247829,0.00039382,120]
[423423070,1780103187000,500.0,0.00039382,120]
[423423072,1780103187000,500.0,0.00039382,120]
[423423073,1780103187000,1977.5,0.00039382,120]
[423423074,1780103187000,500.0,0.00039382,120]
[423423071,1780103187000,1977.5,0.00039382,120]
[423423075,1780103188000,1977.5,0.00039382,120]
[423423076,1780103188000,500.0,0.00039382,120]
[423423077,1780103188000,500.0,0.00039382,120]
[423423078,1780103188000,1977.5,0.00039382,120]
[423423079,1780103188000,500.0,0.00039382,120]
[423423082,1780103188000,500.0,0.00039382,120]
[423423081,1780103188000,1977.5,0.00039382,120]
[423423083,1780103188000,999.41,0.00039382,120]
[423423084,1780103188000,500.0,0.00039382,120]
[423423085,1780103188000,500.0,0.00039382,120]
[423423080,1780103188000,500.0,0.00039382,120]
[423423086,1780103189000,1977.5,0.00039382,120]
[423423087,1780103189000,999.41,0.00039382,120]
[423423088,1780103189000,500.0,0.00039382,120]
[423423089,1780103189000,500.0,0.00039382,120]
[423423091,1780103189000,1977.5,0.00039382,120]
[423423092,1780103189000,500.0,0.00039382,120]
[423423090,1780103189000,500.0,0.00039382,120]
[423423094,1780103189000,500.0,0.00039382,120]
[423423095,1780103189000,500.0,0.00039382,120]
[423423096,1780103189000,500.0,0.00039382,120]
[423423098,1780103189000,500.0,0.00039382,120]
[423423097,1780103189000,1977.5,0.00039382,120]
[423423099,1780103189000,999.41,0.00039382,120]
[423423100,1780103189000,500.0,0.00039382,120]
[423423093,1780103189000,999.41,0.00039382,120]
[423423109,1780103190000,1692.76,0.00039382,120]
[423423108,1780103190000,500.0,0.00039382,120]
[423423107,1780103190000,999.41,0.00039382,120]
[423423110,1780103190000,500.0,0.00039382,120]
[423423102,1780103190000,500.0,0.00039382,120]
[423423105,1780103190000,1977.5,0.00039382,120]
[423423103,1780103190000,500.0,0.00039382,120]
[423423101,1780103190000,1692.76,0.00039382,120]
[423423104,1780103190000,500.0,0.00039382,120]
[423423111,1780103190000,500.0,0.00039382,120]
[423423106,1780103190000,500.0,0.00039382,120]
[423423114,1780103190000,500.0,0.00039382,120]
[423423122,1780103190000,999.41,0.00039382,120]
[423423121,1780103190000,500.0,0.00039382,120]
[423423120,1780103190000,1977.5,0.00039382,120]
[423423119,1780103190000,500.0,0.00039382,120]
[423423112,1780103190000,567.49882846,0.00039382,120]
[423423117,1780103190000,1692.76,0.00039382,120]
[423423116,1780103190000,999.41,0.00039382,120]
[423423115,1780103190000,238.96048538,0.00039382,120]
[423423113,1780103190000,1977.5,0.00039382,120]
[423423118,1780103190000,649.7483238,0.00039382,120]
[423423124,1780103191000,1692.76,0.00039382,120]
[423423125,1780103191000,1977.5,0.00039382,120]
[423423126,1780103191000,500.0,0.00039382,120]
[423423123,1780103191000,500.0,0.00039382,120]
[423423128,1780103191000,500.0,0.00039382,120]
[423423129,1780103191000,1977.5,0.00039382,120]
[423423130,1780103191000,496.52887515,0.00039382,120]
[423423127,1780103191000,999.41,0.00039382,120]
[423423131,1780103293000,474.25399368,0.000105,3]
[423423132,1780103357000,244.31266341,0.000105,3]
[423423151,1780103431000,-448.5865021,8.897e-05,2]
[423423139,1780103431000,-152.0,8.173e-05,2]
[423423142,1780103431000,-150.0,8.537e-05,2]
[423423146,1780103431000,-1046.90811534,8.8e-05,2]
[423423148,1780103431000,-2316.7485,8.801e-05,2]
[423423147,1780103431000,-7703.418,8.801e-05,2]
[423423150,1780103431000,-500.0,8.897e-05,2]
[423423149,1780103431000,-2500.0,8.801e-05,2]
[423423153,1780103431000,-500.0,8.897e-05,2]
[423423144,1780103431000,-153.09188466,8.8e-05,2]
[423423157,1780103431000,-12124.3423024,8.898e-05,2]
[423423155,1780103431000,-8558.6648996,8.898e-05,2]
[423423154,1780103431000,-192.98164932,8.897e-05,2]
[423423156,1780103431000,-7106.6644755,8.898e-05,2]
[423423158,1780103431000,-1006.79712,8.898e-05,2]
[423423159,1780103431000,-298592.3312241,8.9e-05,2]
[423423152,1780103431000,-500.0,8.897e-05,2]
[423423161,1780103431000,-190654.17844124,8.901e-05,2]
[423423160,1780103431000,-241648.4996366,8.901e-05,2]
[423423162,1780103431000,-2466.274084,8.901e-05,2]
[423423163,1780103432000,-1379.0,8.901e-05,2]
[423423167,1780103432000,-338.72452,8.901e-05,2]
[423423166,1780103432000,-264.80835998,8.901e-05,2]
[423423164,1780103432000,-811.38375138,8.901e-05,2]
[423423169,1780103437000,-2347.55464834,8.901e-05,2]
[423423177,1780103439000,-5736.87943995,8.905e-05,2]
[423423176,1780103439000,-1103959.61622714,8.905e-05,2]
[423423173,1780103439000,-423.97216256,8.905e-05,2]
[423423172,1780103439000,-85770.7620224,8.905e-05,2]
[423423171,1780103439000,-150.0,8.904e-05,2]
[423423170,1780103439000,-61913.67022126,8.901e-05,2]
[423423204,1780103445000,-215.5484138,9.034e-05,2]
[423423206,1780103445000,-209.09056759,9.035e-05,2]
[423423205,1780103445000,-160.0,9.035e-05,2]
[423423208,1780103445000,-1312.07946234,9.468e-05,2]
[423423207,1780103445000,-621.5,9.308e-05,2]
[423423209,1780103445000,-2252.78293766,9.468e-05,2]
[423423210,1780103445000,-1691.97078516,9.479e-05,2]
[423423292,1780103447000,-427.46515504,8.801e-05,2]
[423423294,1780103447000,-338.53114828,8.801e-05,2]
[423423293,1780103447000,-13122.93369061,8.801e-05,2]
[423423295,1780103452000,294.21087896,0.00028,120]
[423423296,1780103487000,800.11126921,0.000105,3]
[423423297,1780103497000,-300.0,8.8e-05,2]
[423423298,1780103514000,888.0,0.00028082,120]
[423423299,1780103518000,1144.05,0.00028082,120]
[423423300,1780103519000,-1517.0,8.801e-05,2]
[423423301,1780103521000,888.0,0.00028082,120]
[423423302,1780103539000,569.67,0.00028082,120]
[423423303,1780103549000,383.42647064,0.000105,3]
[423423304,1780103550000,1716.08,0.00028082,120]
[423423306,1780103649000,330.0,9.479e-05,3]
[423423307,1780103669000,-152.0,8.237e-05,2]
[423423308,1780103694000,10000.0,0.00028082,120]
[423423309,1780103722000,-300.0,8.796e-05,2]
[423423310,1780103724000,10000.0,0.00028082,120]
[423423311,1780103731000,888.0,0.00028082,120]
[423423312,1780103736000,888.0,0.00028082,120]
[423423313,1780103752000,10000.0,0.00028082,120]
[423423314,1780103775000,-900.0,8.796e-05,2]
[423423315,1780103826000,-300.0,8.796e-05,2]
[423423316,1780103878000,-300.0,8.796e-05,2]
[423423317,1780103932000,-500.0,8.796e-05,2]
[423423319,1780103948000,150.0,1e-05,120]
[423423320,1780103984000,-215.5484138,8.796e-05,2]
[423423321,1780103992000,2000.0,0.00028,120]
[423423322,1780104038000,-181.0,8.796e-05,2]
[423423325,1780104056000,216.9,0.0002789,120]
[423423324,1780104056000,216.9,0.00027644,120]
[423423323,1780104056000,216.9,0.00027397,120]
[423423326,1780104059000,330.0,9.479e-05,3]
[423423327,1780104092000,-646.80284112,8.795e-05,2]
[423423329,1780104145000,-500.0,8.795e-05,2]
[423423330,1780104170000,2000.0,0.00028,120]
[423423331,1780104215000,1800.0,0.00028,120]
[423423332,1780104219000,500.0,0.00027877,120]
[423423333,1780104232000,251.70747201,0.000105,3]
[423423337,1780104417000,235.53059007,0.000105,3]
[423423338,1780104445000,330.0,9.479e-05,3]
[423423339,1780104534000,-1088.35,8.132e-05,2]
[423423340,1780104556000,-152.0,8.238e-05,2]
[423423341,1780104559000,1000.0,0.00028081,120]
[423423342,1780104562000,330.0,9.479e-05,3]
[423423343,1780104563000,-334.70279484,8.306e-05,2]
[423423344,1780104604000,-2.47720516,8.306e-05,2]
[423423345,1780104611000,-2.47720516,8.33e-05,2]
[423423346,1780104618000,320.38059243,0.000105,3]
[423423417,1780104663000,-1103.58279484,8.33e-05,2]
[423423416,1780104663000,1206.8205084,8.7e-05,3]
[423423419,1780104664000,-152.0,8.607e-05,2]
[423423418,1780104664000,-667.32,8.363e-05,2]
[423423420,1780104664000,-175.0740699,8.698e-05,2]
[423423421,1780104664000,-5102.85482016,8.698e-05,2]
[423423425,1780104664000,-150.0,8.7e-05,2]
[423423423,1780104664000,-1200.0,8.7e-05,2]
[423423424,1780104664000,-300.0,8.7e-05,2]
[423423426,1780104664000,-59957.70824003,8.701e-05,2]
[423423427,1780104664000,-500.0,8.701e-05,2]
[423423422,1780104664000,-836.21750994,8.698e-05,2]
[423423444,1780104668000,-348.9349285,8.903e-05,2]
[423423446,1780104668000,-1105.1687082,8.904e-05,2]
[423423457,1780104668000,-3386.71,9.156e-05,2]
[423423445,1780104668000,-29169.4363772,8.904e-05,2]
[423423447,1780104668000,-66744.1400394,8.904e-05,2]
[423423450,1780104668000,-10055.0,8.969e-05,2]
[423423448,1780104668000,-3910.0240475,8.904e-05,2]
[423423451,1780104668000,-850.0,8.982e-05,2]
[423423454,1780104668000,-252.99228527,9.137e-05,2]
[423423453,1780104668000,-250.0,9.062e-05,2]
[423423452,1780104668000,-1075.0,9e-05,2]
[423423449,1780104668000,-680.0,8.928e-05,2]
[423423441,1780104668000,-16487.509699,8.903e-05,2]
[423423436,1780104668000,-263.91170216,8.901e-05,2]
[423423443,1780104668000,-77354.2323399,8.903e-05,2]
[423423440,1780104668000,-515.4827244,8.903e-05,2]
[423423442,1780104668000,-45346.6465659,8.903e-05,2]
[423423439,1780104668000,-1330.6269681,8.903e-05,2]
[423423437,1780104668000,-206.1977246,8.903e-05,2]
[423423435,1780104668000,-592.88734821,8.901e-05,2]
[423423434,1780104668000,-5903.25526359,8.876e-05,2]
[423423433,1780104668000,-160.0,8.872e-05,2]
[423423430,1780104668000,-2500.0,8.803e-05,2]
[423423429,1780104668000,-666058.69235997,8.701e-05,2]
[423423431,1780104668000,-2000.0,8.834e-05,2]
[423423432,1780104668000,-4441.0,8.869e-05,2]
[423423428,1780104668000,-209.09056759,8.33e-05,2]
[423423438,1780104668000,-14360.1021837,8.903e-05,2]
[423423455,1780104668000,-1280.0,9.144e-05,2]
[423423468,1780104668000,-200.0,9.703e-05,2]
[423423456,1780104668000,-164.49,9.152e-05,2]
[423423458,1780104668000,-151.1,9.2e-05,2]
[423423484,1780104668000,-2000.0,0.0001,2]
[423423483,1780104668000,-2000.0,0.0001,2]
[423423486,1780104668000,-2000.0,0.0001,2]
[423423485,1780104668000,-2000.0,0.0001,2]
[423423480,1780104668000,-2000.0,0.0001,2]
[423423482,1780104668000,-2000.0,0.0001,2]
[423423479,1780104668000,-2000.0,0.0001,2]
[423423481,1780104668000,-2000.0,0.0001,2]
[423423477,1780104668000,-2000.0,0.0001,2]
[423423478,1780104668000,-2000.0,0.0001,2]
[423423475,1780104668000,-151.1,9.953e-05,2]
[423423476,1780104668000,-151.0,0.0001,2]
[423423473,1780104668000,-151.1,9.846e-05,2]
[423423487,1780104668000,-2000.0,0.0001,2]
[423423471,1780104668000,-166.68,9.788e-05,2]
[423423459,1780104668000,-151.1,9.308e-05,2]
[423423461,1780104668000,-1000.0,9.495e-05,2]
[423423460,1780104668000,-151.1,9.415e-05,2]
[423423463,1780104668000,-151.1,9.523e-05,2]
[423423474,1780104668000,-2000.0,9.938e-05,2]
[423423464,1780104668000,-1680.0,9.57e-05,2]
[423423462,1780104668000,-789.38,9.512e-05,2]
[423423465,1780104668000,-420.0,9.57e-05,2]
[423423467,1780104668000,-151.1,9.631e-05,2]
[423423469,1780104668000,-320.0,9.704e-05,2]
[423423470,1780104668000,-151.1,9.738e-05,2]
[423423472,1780104668000,-500.0,9.788e-05,2]
[423423466,1780104668000,-255.0,9.57e-05,2]
[423423527,1780104669000,-500.0,0.00010998,3]
[423423526,1780104669000,-500.0,0.00010998,2]
[423423525,1780104669000,-300.0,0.00010979,2]
[423423524,1780104669000,-150.0,0.00010959,2]
[423423517,1780104669000,-666.98,0.000109,2]
[423423521,1780104669000,-500.0,0.00010958,2]
[423423519,1780104669000,-18638.13469689,0.000109,2]
[423423522,1780104669000,-500.0,0.00010958,3]
[423423520,1780104669000,-320.0,0.00010917,2]
[423423530,1780104669000,-500.0,0.00010998,6]
[423423523,1780104669000,-150.0,0.00010959,2]
[423423528,1780104669000,-500.0,0.00010998,4]
[423423535,1780104669000,-2000.0,0.00011042,2]
[423423532,1780104669000,-500.0,0.00010998,8]
[423423534,1780104669000,-3777.9,0.0001103,2]
[423423538,1780104669000,-500.0,0.00011098,9]
[423423533,1780104669000,-2000.0,0.00010999,2]
[423423536,1780104669000,-163.26643931,0.00011079,2]
[423423537,1780104669000,-273.08114932,0.00011089,2]
[423423539,1780104669000,-48235.64303929,0.00011099,2]
[423423541,1780104669000,-3550.0,0.00011171,2]
[423423540,1780104669000,-48235.64303922,0.00011099,2]
[423423542,1780104669000,-928.0,0.00011171,2]
[423423543,1780104669000,-18638.13469689,0.00011329,2]
[423423516,1780104669000,-3777.9,0.00010779,2]
[423423531,1780104669000,-500.0,0.00010998,7]
[423423518,1780104669000,-18638.13469693,0.000109,2]
[423423500,1780104669000,-3777.9,0.00010027,2]
[423423512,1780104669000,-3777.9,0.00010529,2]
[423423489,1780104669000,-1164.0,0.0001,2]
[423423490,1780104669000,-2000.0,0.0001,2]
[423423488,1780104669000,-2000.0,0.0001,2]
[423423491,1780104669000,-2000.0,0.0001,2]
[423423493,1780104669000,-2000.0,0.0001,2]
[423423492,1780104669000,-2000.0,0.0001,2]
[423423494,1780104669000,-2000.0,0.0001,2]
[423423495,1780104669000,-2000.0,0.0001,2]
[423423497,1780104669000,-151.0,0.0001,2]
[423423502,1780104669000,-500.0,0.00010062,2]
[423423498,1780104669000,-151.0,0.0001,2]
[423423499,1780104669000,-163.54,0.0001,2]
[423423514,1780104669000,-500.0,0.00010658,2]
[423423501,1780104669000,-151.1,0.00010061,2]
[423423496,1780104669000,-2000.0,0.0001,2]
[423423503,1780104669000,-250.0,0.00010141,2]
[423423505,1780104669000,-3777.9,0.00010278,2]
[423423504,1780104669000,-151.1,0.00010169,2]
[423423506,1780104669000,-1280.0,0.00010286,2]
[423423507,1780104669000,-164.49,0.00010296,2]
[423423509,1780104669000,-587.0,0.00010527,2]
[423423508,1780104669000,-662.29929294,0.000103,2]
[423423511,1780104669000,-433.0,0.00010527,2]
[423423513,1780104669000,-1545.0,0.00010646,2]
[423423515,1780104669000,-28549.87043351,0.000107,2]
[423423510,1780104669000,-2351.0,0.00010527,2]
[423423544,1780104669000,-1272.0,0.00011348,2]
[423423546,1780104669000,-1280.0,0.00011429,2]
[423423529,1780104669000,-500.0,0.00010998,5]
[423423545,1780104669000,-1245.947,0.00011348,2]
[423423577,1780104669000,-14360.1021837,0.00012761,2]
[423423579,1780104669000,-515.4827244,0.00012761,2]
[423423584,1780104669000,-1161.71,0.00012893,2]
[423423582,1780104669000,-156.01,0.00012784,2]
[423423580,1780104669000,-16487.509699,0.00012761,2]
[423423581,1780104669000,-45346.6465659,0.00012761,2]
[423423583,1780104669000,-9999.99,0.00012893,2]
[423423585,1780104669000,-315.0,0.000129,2]
[423423588,1780104669000,-2425.50775553,0.0001305,2]
[423423587,1780104669000,-48235.64303922,0.00012964,2]
[423423586,1780104669000,-443.0,0.000129,2]
[423423596,1780104669000,-18638.13469689,0.00013471,2]
[423423578,1780104669000,-1330.6269681,0.00012761,2]
[423423594,1780104669000,-48235.64303922,0.00013448,2]
[423423595,1780104669000,-156.01,0.00013457,2]
[423423593,1780104669000,-1633.3090011,0.00013423,2]
[423423592,1780104669000,-320.0,0.00013343,2]
[423423590,1780104669000,-156.01,0.00013121,2]
[423423597,1780104669000,-150.0,0.00013488,2]
[423423599,1780104669000,-150.0,0.00013488,2]
[423423598,1780104669000,-150.0,0.00013488,2]
[423423600,1780104669000,-150.0,0.00013488,2]
[423423603,1780104669000,-150.0,0.00013488,2]
[423423602,1780104669000,-150.0,0.00013488,2]
[423423601,1780104669000,-150.0,0.00013488,2]
[423423549,1780104669000,-160.825,0.0001147,2]
[423423591,1780104669000,-2000.0,0.0001325,2]
[423423574,1780104669000,-1152.0,0.00012738,2]
[423423589,1780104669000,-1633.3090011,0.00013053,2]
[423423575,1780104669000,-18638.13469689,0.00012757,2]
[423423576,1780104669000,-206.1977246,0.00012761,2]
[423423547,1780104669000,-164.49,0.0001144,2]
[423423550,1780104669000,-150.0,0.0001147,2]
[423423551,1780104669000,-150.305,0.0001147,2]
[423423553,1780104669000,-247.523,0.0001147,2]
[423423552,1780104669000,-194.92,0.0001147,2]
[423423554,1780104669000,-250.0,0.0001147,2]
[423423555,1780104669000,-151.0,0.0001147,2]
[423423556,1780104669000,-245.485,0.0001147,2]
[423423557,1780104669000,-48235.64303922,0.00011511,2]
[423423560,1780104669000,-736.0,0.0001158,2]
[423423558,1780104669000,-823.0,0.0001158,2]
[423423561,1780104669000,-1106.06,0.00011662,2]
[423423548,1780104669000,-170.0,0.0001147,2]
[423423573,1780104669000,-418.0,0.00012737,2]
[423423570,1780104669000,-1280.0,0.00012572,2]
[423423572,1780104669000,-1633.3090011,0.00012684,2]
[423423571,1780104669000,-164.49,0.00012584,2]
[423423569,1780104669000,-48235.64303922,0.00012479,2]
[423423559,1780104669000,-2670.0,0.0001158,2]
[423423567,1780104669000,-1749.94,0.00012329,2]
[423423568,1780104669000,-1041.05,0.00012329,2]
[423423566,1780104669000,-586.10146131,0.00012277,2]
[423423564,1780104669000,-320.0,0.0001213,2]
[423423562,1780104669000,-48235.64303922,0.00011995,2]
[423423563,1780104669000,-18638.13469689,0.00012043,2]
[423423565,1780104669000,-2000.0,0.00012146,2]
[423423645,1780104670000,-500.0,0.00013698,2]
[423423642,1780104670000,-943.27,0.00013698,2]
[423423638,1780104670000,-943.27,0.00013698,2]
[423423644,1780104670000,-500.0,0.00013698,2]
[423423643,1780104670000,-943.27,0.00013698,2]
[423423661,1780104670000,-416.75120868,0.00013698,2]
[423423640,1780104670000,-943.27,0.00013698,2]
[423423639,1780104670000,-943.27,0.00013698,2]
[423423637,1780104670000,-943.27,0.00013698,2]
[423423634,1780104670000,-943.27,0.00013698,2]
[423423646,1780104670000,-500.0,0.00013698,2]
[423423636,1780104670000,-943.27,0.00013698,2]
[423423641,1780104670000,-943.27,0.00013698,2]
[423423648,1780104670000,-500.0,0.00013698,2]
[423423655,1780104670000,-422.02,0.00013698,2]
[423423649,1780104670000,-500.0,0.00013698,2]
[423423651,1780104670000,-500.0,0.00013698,2]
[423423654,1780104670000,-500.0,0.00013698,2]
[423423656,1780104670000,-500.0,0.00013698,2]
[423423652,1780104670000,-500.0,0.00013698,2]
[423423650,1780104670000,-500.0,0.00013698,2]
[423423653,1780104670000,-500.0,0.00013698,2]
[423423660,1780104670000,-500.0,0.00013698,2]
[423423657,1780104670000,-500.0,0.00013698,2]
[423423658,1780104670000,-500.0,0.00013698,2]
[423423659,1780104670000,-500.0,0.00013698,2]
[423423633,1780104670000,-943.27,0.00013698,2]
[423423647,1780104670000,-500.0,0.00013698,2]
[423423635,1780104670000,-943.27,0.00013698,2]
[423423607,1780104670000,-150.0,0.00013508,2]
[423423631,1780104670000,-500.0,0.00013698,2]
[423423662,1780104670000,-200.0,0.00013699,2]
[423423606,1780104670000,-150.0,0.00013488,2]
[423423608,1780104670000,-150.0,0.00013529,2]
[423423605,1780104670000,-150.0,0.00013488,2]
[423423604,1780104670000,-150.0,0.00013488,2]
[423423610,1780104670000,-150.0,0.00013559,2]
[423423609,1780104670000,-150.0,0.0001355,2]
[423423611,1780104670000,-150.0,0.00013571,2]
[423423612,1780104670000,-150.0,0.00013576,2]
[423423614,1780104670000,-150.0,0.00013592,2]
[423423613,1780104670000,-150.0,0.00013581,2]
[423423615,1780104670000,-150.0,0.00013613,2]
[423423616,1780104670000,-150.0,0.00013624,2]
[423423620,1780104670000,-872.4442919,0.00013632,2]
[423423617,1780104670000,-150.0,0.0001363,2]
[423423618,1780104670000,-6508.5810102,0.00013632,2]
[423423619,1780104670000,-14892.6306559,0.00013632,2]
[423423621,1780104670000,-150.0,0.00013633,2]
[423423624,1780104670000,-150.0,0.00013675,2]
[423423623,1780104670000,-150.0,0.00013664,2]
[423423622,1780104670000,-150.0,0.00013654,2]
[423423625,1780104670000,-150.0,0.00013675,2]
[423423629,1780104670000,-500.0,0.00013698,2]
[423423632,1780104670000,-500.0,0.00013698,2]
[423423630,1780104670000,-500.0,0.00013698,2]
[423423627,1780104670000,-150.0,0.00013696,2]
[423423628,1780104670000,-500.0,0.00013697,10]
[423423626,1780104670000,-150.0,0.00013675,2]
[423423664,1780104670000,-154.0,0.00013699,2]
[423423709,1780104670000,-166.66,0.00013973,2]
[423423663,1780104670000,-166.66,0.00013699,2]
[423423698,1780104670000,-150.0,0.00013862,2]